Cogmind - Beta 14 @@@ ROGUE MODE // 2025.04.22 @ 09:34:18 Player: Glogmind Result: Smashed by cave-in Performance ------------- Evolutions (0) 0 Regions Visited (4) 800 Robots Destroyed (19) 95 Value Destroyed (459) 459 Prototype IDs (0) 0 Alien Tech Used (0) 0 Bonus (155) 155 TOTAL SCORE: 1509 Bonus ------- Follower Combat Kills 155 Cogmind --------- Core Integrity 0/250 Matter 295/300 Energy 100/100 System Corruption 1% Temperature Warm (110) Movement Treading (480) Ox4 Location -9/Mines Parts ------- > --- POWER (1) -------- (None) > --- PROPULSION (2) --- Light Treads > --- UTILITY (2) ------ Huge Storage Unit Sensor Array > --- WEAPON (2) ------- Makeshift Laser > --- INVENTORY (25) --- Ion Engine Light Treads Light Treads Compact Wheel Compact Wheel Improved Heat Sink High-capacity Matter Pod (200) High-capacity Matter Pod (200) Sensor Array Signal Interpreter Signal Interpreter Targeting Computer Targeting Computer Targeting Computer Shotgun Grenade Launcher Blade Trap Blade Trap Blade Trap Blade Trap Blade Trap Peak State ------------ > --- POWER ------------ Ion Engine > --- PROPULSION ------- Light Treads Light Treads > --- UTILITY ---------- High-capacity Storage Unit Sensor Array > --- WEAPON ----------- Makeshift Laser Light Cannon > --- INVENTORY -------- Ion Engine Light Treads Light Treads Compact Wheel Compact Wheel Improved Heat Sink High-capacity Matter Pod High-capacity Matter Pod Sensor Array Signal Interpreter Signal Interpreter Targeting Computer Targeting Computer Targeting Computer Grenade Launcher Blade Trap Blade Trap Blade Trap Blade Trap Blade Trap [Rating: 12] Favorites ----------- Power Ion Engine Engine Ion Engine Propulsion Light Treads Treads Light Treads Utility Sensor Array Device Sensor Array Storage High-capacity Storage Unit Weapon Light Cannon Energy Gun Small Laser Ballistic Gun Assault Rifle Ballistic Cannon Light Cannon Build | -11 -10 -10 -10 -9 ------- Run | Yrd Mat Min Exi Min Slots Evolved . | . . . . . Power . | . . . . . Propulsion . | . . . . . Utility . | . . . . . Weapon . | . . . . . Parts Attached 26 | 7 14 3 1 1 Power 4 | 1 3 . . . Engine 4 | 1 3 . . . Core . | . . . . . Reactor . | . . . . . Propulsion 5 | 2 3 . . . Treads 5 | 2 3 . . . Leg . | . . . . . Wheel . | . . . . . Hover . | . . . . . Flight . | . . . . . Utility 10 | 2 4 3 . 1 Device 4 | 1 2 1 . . Storage 6 | 1 2 2 . 1 Processor . | . . . . . Hackware . | . . . . . Protection . | . . . . . Artifact . | . . . . . Weapon 7 | 2 4 . 1 . Energy Gun 2 | . 1 . 1 . Energy Cannon . | . . . . . Ballistic Gun 3 | 2 1 . . . Ballistic Cannon 2 | . 2 . . . Launcher . | . . . . . Special Weapon . | . . . . . Impact Weapon . | . . . . . Slashing Weapon . | . . . . . Piercing Weapon . | . . . . . Special Melee Weapon . | . . . . . Unidentified Prototypes . | . . . . . Parts Lost 3 | . . . . 3 Power 1 | . . . . 1 Propulsion 1 | . . . . 1 Utility . | . . . . . Weapon 1 | . . . . 1 Highest Loss Streak 3 | . . . . 3 To Critical Strikes . | . . . . . Average Slot Usage (%) 98 | . 97 99 100 99 Engine 14 | . 14 14 14 14 Treads 27 | . 27 28 28 27 Device 13 | . 12 13 14 14 Storage 14 | . 14 14 14 14 Energy Gun 12 | . 9 14 14 14 Ballistic Gun 5 | . 14 . . . Ballistic Cannon 9 | . 4 14 14 14 Peak Build Rating 12 | 7 8 11 12 12 Average Rating 8 | 5 7 8 9 11 On Entrance 7 | . 7 8 9 12 Naked Turns . | . . . . . Heaviest Build 91 | 14 50 50 51 91 Greatest Support 40 | 40 40 40 40 40 Greatest Overweight (x) 2 | . 1 1 1 2 Average Overweight (x) . | . . 1 1 1 Largest Inventory Capacity 25 | 8 20 20 20 25 Average Capacity 18 | 6 15 20 20 24 Most Carried 21 | 6 16 20 20 21 Average Carried 15 | 3 9 18 20 20 Final Capacity 25 | 8 20 20 20 25 Final Carried 21 | 6 15 20 20 21 Class Distribution -------------------- 65% | Mutant 34% | Commander-Mutant Dominant Class ---------------- Mutant | -10/Materials Mutant | -10/Mines Commander-Mutant | -10/Exiles Commander-Mutant | -9/Mines Resources | -11 -10 -10 -10 -9 ----------- Run | Yrd Mat Min Exi Min Matter Collected 601 | 272 269 13 . 47 Remotely . | . . . . . Salvage Created 541 | 30 471 . . 40 Parts 45 | 2 41 . . 2 Haulers Intercepted 1 | . 1 . . . Recyclers Shooed 1 | . 1 . . . Parts Field Recycled . | . . . . . Retrieved Matter . | . . . . . Parts Self-Destructed . | . . . . . Prevented . | . . . . . Kills | -11 -10 -10 -10 -9 ------- Run | Yrd Mat Min Exi Min Combat Hostiles Destroyed 13 | . 11 . . 2 Guns 13 | . 11 . . 2 Classes Destroyed 8 | 1 6 . . 1 Worker 1 | . 1 . . . Tunneler 1 | 1 . . . . Hauler 1 | . 1 . . . Operator 1 | . 1 . . . Watcher 2 | . 2 . . . Swarmer 4 | . 3 . . 1 Grunt 8 | . 8 . . . Demolisher 1 | . . . . 1 Best Kill Streak 5 | 1 5 . . 1 Combat Bots Only 5 | . 5 . . 1 Max Kills in Single Turn 1 | 1 1 . . 1 Gunslinging . | . . . . . Exploded . | . . . . . Melee . | . . . . . Uniques/NPCs Destroyed . | . . . . . Combat | -11 -10 -10 -10 -9 -------- Run | Yrd Mat Min Exi Min Hostile Shots Fired 47 | . 29 . . 18 Missed 8 | . 6 . . 2 Damage Taken 1054 | . 280 . . 774 Core 274 | . 27 . . 247 Absorbed by Shields . | . . . . . Regen/Repaired (Parts) 172 | . 172 . . . Core Remaining (%) 100 | 100 . . . . Volleys Fired 48 | 2 36 . . 10 Largest 2 | 2 2 . . 2 Hottest 85 | 40 75 . . 85 Shots Fired 94 | 4 70 . . 20 Gun 80 | 4 66 . . 10 Cannon 14 | . 4 . . 10 Launcher . | . . . . . Special . | . . . . . Kinetic 66 | 4 52 . . 10 Thermal 28 | . 18 . . 10 Explosive . | . . . . . Electromagnetic . | . . . . . Robot Hit Streak 10 | 1 10 . . 6 Robot Miss Streak 5 | 1 5 . . 1 Penetration Max . | . . . . . Secondary Targets 1 | . 1 . . . Max Gunslinging Chain 1 | . 1 . . . Shots Hit Robots 63 | 2 49 . . 12 Core Hits 35 | 1 29 . . 5 Critical Kills . | . . . . . Critical Parts Destroyed . | . . . . . Critical Strikes . | . . . . . Melee Attacks . | . . . . . Impact . | . . . . . Slashing . | . . . . . Piercing . | . . . . . Sneak Attacks . | . . . . . Combat Hostiles . | . . . . . Follow-up Attacks . | . . . . . Damage Inflicted 799 | 16 555 9 . 219 Guns 635 | 16 550 . . 69 Cannons 147 | . . . . 147 Explosions . | . . . . . Melee . | . . . . . Ramming 17 | . 5 9 . 3 Kinetic 546 | 16 383 . . 147 Thermal 236 | . 167 . . 69 Explosive . | . . . . . Electromagnetic . | . . . . . Impact . | . . . . . Slashing . | . . . . . Piercing . | . . . . . Highest Corruption . | . . . . . Average Corruption . | . . . . . Corruption Purged . | . . . . . Corruption Blocked . | . . . . . Overload Shots . | . . . . . Overflow Damage 12 | . . . . 12 Projectiles 12 | . . . . 12 Explosions . | . . . . . Melee . | . . . . . Knockbacks 3 | . . . . 3 Impact . | . . . . . Kinetic 2 | . . . . 2 Secondary 1 | . . . . 1 Self-Inflicted Damage . | . . . . . Shots . | . . . . . Rammed 3 | . 1 1 . 1 Targets Rammed 3 | . 1 1 . 1 Kicked . | . . . . . Crushed . | . . . . . Highest Temperature 110 | . 33 . . 110 Average Temperature 31 | . 16 . . 52 Received Heat Transfer 150 | . 144 . . 6 Siege Activations . | . . . . . Robots Corrupted . | . . . . . Combat Hostiles . | . . . . . Parts Fried . | . . . . . Impact Corruptions . | . . . . . Robots Melted . | . . . . . Combat Hostiles . | . . . . . Parts Melted 1 | . . . . 1 Heat Transferred 523 | . 375 . . 148 Parts Sabotaged . | . . . . . Parts Stolen . | . . . . . Parts Stripped . | . . . . . Power Chain Reactions . | . . . . . Alert | -11 -10 -10 -10 -9 ------- Run | Yrd Mat Min Exi Min Peak Influence 208 | 5 208 . . 166 Initial 3 | . 3 . . . Average 64 | 1 73 . . 88 Maximum Alert Level 1 | . 1 . . . Low Security (%) 97 | 100 94 100 . 100 Level 1 2 | . 5 . . . Level 2 . | . . . . . Level 3 . | . . . . . Level 4 . | . . . . . Level 5 . | . . . . . High Security . | . . . . . Max Security . | . . . . . Squads Dispatched 1 | . 1 . . . Investigation . | . . . . . Extermination . | . . . . . Reinforcement 1 | . 1 . . . Assault . | . . . . . Garrison . | . . . . . Intercept . | . . . . . Searches Triggered . | . . . . . Construction Impeded . | . . . . . Haulers Reinforced . | . . . . . Active Scanning Responses . | . . . . . Cargo Convoy Interrupts . | . . . . . Stealth | -11 -10 -10 -10 -9 --------- Run | Yrd Mat Min Exi Min Distress Signals 1 | . 1 . . . Communications Jammed . | . . . . . Distress Signals . | . . . . . Times Spotted 35 | . 22 . . 13 Peak Tracking Total 5 | . 5 . . 3 Tactical Retreats 1 | . 1 . . . Traps | -11 -10 -10 -10 -9 ------- Run | Yrd Mat Min Exi Min Traps Triggered 1 | . 1 . . . Indirectly . | . . . . . Trap Hack Attempts . | . . . . . Triggered . | . . . . . Disarmed . | . . . . . Reprogrammed . | . . . . . Reused . | . . . . . Traps Extracted . | . . . . . Installed . | . . . . . Triggered . | . . . . . Most Traps Carried 5 | . . 5 5 5 Machines | -11 -10 -10 -10 -9 ---------- Run | Yrd Mat Min Exi Min Machines Disabled 1 | . . . . 1 Max in Single Turn . | . . . . . Machines Repaired . | . . . . . Machines Dismantled . | . . . . . Machines Sabotaged . | . . . . . Overloaded Fab Kills . | . . . . . Hacking | -11 -10 -10 -10 -9 --------- Run | Yrd Mat Min Exi Min Machines Accessed 13 | . 10 . 3 . Terminals 7 | . 7 . . . Fabricators . | . . . . . Repair Stations 1 | . 1 . . . Recycling Units 2 | . 2 . . . Scanalyzers . | . . . . . Garrison Access . | . . . . . Total Hacks 62 | . 38 . 24 . Successful 47 | . 23 . 24 . Failed 15 | . 15 . . . Catastrophic 1 | . 1 . . . Database Lockouts . | . . . . . Manual 26 | . 25 . 1 . Terminals 25 | . 25 . . . Fabricators . | . . . . . Repair Stations 10 | . 10 . . . Recycling Units 3 | . 3 . . . Scanalyzers . | . . . . . Garrison Access . | . . . . . Terminal Hacks 26 | . 2 . 24 . Record 24 | . . . 24 . Part Schematic 1 | . 1 . . . Robot Analysis 1 | . 1 . . . Fabricator Hacks . | . . . . . Repair Station Hacks 8 | . 8 . . . Scan Component 4 | . 4 . . . Repair 4 | . 4 . . . Recycling Unit Hacks 2 | . 2 . . . Retrieve Components 2 | . 2 . . . Scanalyzer . | . . . . . Garrison Access Hacks . | . . . . . Unauthorized Hacks 11 | . 11 . . . Terminals 11 | . 11 . . . Botnet 5 | . 5 . . . Skim 6 | . 6 . . . Fabricators . | . . . . . Repair Stations . | . . . . . Recycling Units . | . . . . . Scanalyzers . | . . . . . Garrison Access . | . . . . . Data Cores Recovered . | . . . . . Used . | . . . . . Hacking Detections 9 | . 9 . . . Full Trace Events . | . . . . . Feedback Events . | . . . . . Feedback Blocked . | . . . . . Robot Schematics Acquired . | . . . . . Robots Built . | . . . . . Authchips . | . . . . . Time . | . . . . . Total Robot Build Rating . | . . . . . Part Schematics Acquired 1 | . 1 . . . Parts Built . | . . . . . Authchips . | . . . . . Time . | . . . . . Total Part Build Rating . | . . . . . Parts Repaired 4 | . 4 . . . Time 104 | . 104 . . . Parts Recycled . | . . . . . Recycled Matter . | . . . . . Retrieved Matter . | . . . . . Retrieved Components 16 | . 16 . . . Parts Scanalyzed . | . . . . . Part Schematics Acquired . | . . . . . Parts Damaged . | . . . . . Bothacking | -11 -10 -10 -10 -9 ------------ Run | Yrd Mat Min Exi Min Used RIF Installer . | . . . . . Robots Hacked . | . . . . . Non-combat . | . . . . . Combat . | . . . . . Robot Hacks Applied . | . . . . . Relay Couplers Released . | . . . . . Fabnet Peak Effective % . | . . . . . Robots Rewired 5 | . . . 5 . Allies Hacked . | . . . . . Hacks Repelled . | . . . . . Allies | -11 -10 -10 -10 -9 -------- Run | Yrd Mat Min Exi Min Total Allies 5 | . . . 5 . Largest Group 5 | . . . 5 5 Highest-Rated Group 66 | . . . 66 66 Highest-Rated Ally 21 | . . . 21 21 Total Orders . | . . . . . Ally Attacks 42 | . . . . 42 Total Damage 549 | . . . . 549 Kills 9 | . . . . 9 Allies Corrupted . | . . . . . Allies Melted . | . . . . . Intel | -11 -10 -10 -10 -9 ------- Run | Yrd Mat Min Exi Min Robot Analysis Total 1 | . 1 . . . Derelict Logs Recovered . | . . . . . Drone Launches . | . . . . . Drone Recoveries . | . . . . . Exploration | -11 -10 -10 -10 -9 ------------- Run | Yrd Mat Min Exi Min Turns Passed 3402 | 121 1341 372 757 811 Spaces Moved 1278 | 65 548 149 303 213 Core 4 | 4 . . . . Treads 1274 | 61 548 149 303 213 Legs . | . . . . . Wheels . | . . . . . Hover . | . . . . . Flight . | . . . . . Fastest Speed 50 | 50 160 240 240 240 Average Speed 226 | 153 193 240 240 308 Slowest Speed 320 | 160 240 240 240 320 Overloaded Moves . | . . . . . Propulsion Burnouts . | . . . . . Robots Hopped . | . . . . . Cave-ins Triggered 1 | . . . . 1 Exploration Rate (%) 42 | 5 73 23 70 42 Regions Visited 4 Branch Regions 3 Pre-discovered Areas . | . . . . . Known Exits Taken 1 | . . . 1 . Unknown Exits Taken 3 | 1 1 1 . . Scrap Searched 1 | . . . . 1 Spaces Dug . | . . . . . Terrain Destroyed . | . . . . . Melee . | . . . . . Projectile . | . . . . . AOE . | . . . . . Terrain Rammed . | . . . . . Walls Destroyed . | . . . . . Machines Disabled . | . . . . . Actions | -11 -10 -10 -10 -9 --------- Run | Yrd Mat Min Exi Min Total 1688 | 79 765 164 334 346 Wait 258 | . 141 . . 117 Move 1274 | 64 547 148 302 213 Hop . | . . . . . Pick Up 29 | 6 14 7 . 2 Fast Attach 19 | 7 8 3 1 . Attach 2 | . 2 . . . Detach 1 | . 1 . . . Swap 5 | . 4 . . 1 Drop 19 | . 11 5 1 2 Fire 48 | 2 36 . . 10 Melee . | . . . . . Ram . | . . . . . Kick . | . . . . . Crush 3 | . 1 1 . 1 Escape Stasis . | . . . . . Rewire 30 | . . . 30 . Trap . | . . . . . Miscellaneous . | . . . . . Route ------- -11/Scrapyard -10/Materials (discovered 5 exits: *Mat x3 / [*Min] / Sub) -10/Mines (discovered 4 exits: Mat x2 / *Exi / Sub) -10/Exiles (discovered 2 exits: *Min x2) -9/Mines History --------- Turn | Location | Event 7 | -11/Scrapyard | Discovered new exit (range 15) 122 | -11/Scrapyard | Entered Materials 308 | -10/Materials | Build established: Mutant 414 | -10/Materials | Discovered new exit (range 7) 585 | -10/Materials | Discovered new exit (range 9) 762 | -10/Materials | Discovered new exit (range 16) 987 | -10/Materials | Identified exit to Subcaves 1050 | -10/Materials | Identified exit to Materials 1103 | -10/Materials | Loaded intel: 8 terminal locations 1127 | -10/Materials | Repaired Lgt. Cannon 1148 | -10/Materials | Learned Storage security intel 1155 | -10/Materials | Repaired Lgt. Treads 1182 | -10/Materials | Repaired Lgt. Treads 1210 | -10/Materials | Repaired Lgt. Treads 1463 | -10/Materials | Entered Mines 1538 | -10/Mines | Found a hidden stash of uninstalled traps 1825 | -10/Mines | Deemed a non-threat by the Exiles lab entrance 1825 | -10/Mines | Discovered new exit (range 5) 1835 | -10/Mines | Entered Exiles 1835 | -10/Exiles | Found Exiles lab destroyed 1836 | -10/Exiles | Identified exit to Mines 2434 | -10/Exiles | Build established: Commander-Mutant 2592 | -10/Exiles | Entered Mines 2592 | -9/Mines | Accompanied by 5 allies 3361 | -9/Mines | Assembled infested the area 3398 | -9/Mines | Core integrity fell below 50% 3404 | -9/Mines | Crushed by falling debris 3404 | -9/Mines | Smashed by cave-in Last Messages --------------- Commando 1a destroyed. Slug penetrates Wall. Commando 1b destroyed. The unstable cave ceiling collapses. D-53 Grenadier knocked back. Lgt. Treads destroyed. The unstable cave ceiling collapses. D-53 Grenadier destroyed. K-01 Serf collects debris. The unstable cave ceiling collapses. Destroyed Shock Absorption System. D-53 Grenadier knocked back. The unstable cave ceiling collapses. Ion Engine destroyed. as-94902 sneak attacks. K-01 Serf destroyed. The unstable cave ceiling collapses. Crushed by falling debris. Lgt. Cannon destroyed. System corrupted by crushing effect (+1). Map ----- +----------------------------------------------------+ | | | ??????????????????????????????? | | ??????????????????????????????? | | ??????????????????????????????? | | ??????????????????????????????? | | ??????????????????????????????? | | ??????????????????????????????? | | ??????????????????????????????? | | ??????????????????????????????? | | ??????????????????????????????? | | ??????????????????????????????? | | ??????????????????????????????? | | ?????????????????? ???????????? | | ???????????????? ??????????? | | ?????????????? ??????????? | | ?????????????? ?????????? | | ???????????????% ?????????? | | ???????????????? ????????? | | ?????????????????# #???????? | | ?????????????????# ###????? | | ????????????????## a ! ####?? | | ????????????????# =%=%# ##? | | ????????????????? %d! ## | | ???????????????????#% # | | ???????????????????# # | | ???????????????????# @ # | | ???????????????????# # | | ???????????????????# # | | ??????????????????# % ## | | ??????????????????# ##? | | ??????????????????# [ #?? | | ?????????????????# = #?? | | ???????????????### =% ##?? | | ??????????????## %* % ##?? | | ????????????### #?? | | ???????????## #? | | ??????????## #? | | ?????????## ### ##? | | ????????## %[ ##?## ##?? | | ??????### *%##???## ######??? | | #????## =##?????####???????? | | ##?## ##?????????????????? | | ## #??????????????????? | | #??????????????????? | | # #??????????????????? | | ### #??????????????????? | | ??## ##??????????????????? | | ???# ##??#####???????????? | | ???# ##?# ##??????????? | | ???## #?# ##?????????? | +----------------------------------------------------+ Best States ------------- Heat Dissipation 25 Energy Generation 10 Energy Capacity 250 Matter Stores 300 Matter Capacity 300 Sight Range 16 Robot Scan Range 14 Terrain Scan Density 10 Evasion (%) 40 Recoil Reduction 2 Item Schematics ----------------- Huge Storage Unit | -10/Materials | Hacked Robot Schematics ------------------ None Fabricated ------------ Nothing Alien Tech Used ----------------- None Achievements -------------- None Challenges ------------ None Game ------ Seed SpreadPulseDatajack Manual? 0 Play Time 00:22:05 Cumulative 53.2 hours Start 2025.04.22 @ 09:11:48 End 2025.04.22 @ 09:34:18 Sessions 1 Manual Loads 0 Difficulty Rogue Special Mode None Game No. 86 Rogue 86 Adventurer 0 Explorer 0 Win Type - Total 0 Types 0/0/0/0/0/0/0/0/0 Lore% 15 Gallery% 39 Achievement% 34 Wizard Run 0 Options --------- Layout 1 ASCII 0 Keyboard 0 Movement Mouse Keybinds 0 Fullscreen 1 Font 24/Smallcaps Map View 50x40 Zoom Use 0% Tactical HUD 0 Map Filters NONE Filters NONE Steam 0 RUN: d718f29d-8209-42b7-81a1-5d019ff3365b